bitfinex/quotes_BTCUSD_20220304
["timestamp","ask_amount","ask_price","bid_price","bid_amount"]
[1646382680447,0.15,41024.0,40972.0,0.78196768]
[1646382680448,0.15,41019.0,40993.0,0.16609718]
[1646382680643,0.15,41019.0,40973.0,0.17895302]
[1646382680644,0.15,41008.0,40973.0,0.15582758]
[1646382680845,0.15,41008.0,40975.0,1.0]
[1646382680846,0.15,41005.0,40975.0,1.0]
[1646382681042,0.32751018,41004.0,40979.0,1.0]
[1646382681241,0.4607,41012.0,40969.0,2.00358985]
[1646382681242,0.20093642,40995.0,40986.0,0.001]
[1646382681443,0.15,41000.0,40990.0,0.0047313]
[1646382681642,0.15,40997.0,40986.0,0.001]
[1646382681845,0.15,40995.0,40986.0,0.001]
[1646382682043,0.01218,40994.0,40972.0,0.001]
[1646382682244,0.01218,40994.0,40977.0,1.0]
[1646382682447,0.01218,40994.0,40972.0,0.001]
[1646382682448,0.01218,40994.0,40981.0,1.0]
[1646382682746,0.01,41009.0,40985.0,0.0048536]
[1646382682997,0.01,41009.0,41005.0,0.001]
[1646382683197,0.01,41009.0,41006.0,0.26363761]
[1646382683395,0.01,41009.0,41005.0,0.001]
[1646382683595,0.0001,41009.0,41005.0,0.001]
[1646382683799,0.0001,41009.0,41006.0,0.1931243]
[1646382683998,0.01219,41036.0,41013.0,0.21346965]
[1646382684197,1.34335922,41031.0,41014.0,0.42751018]
[1646382684397,1.34335922,41031.0,41009.0,0.26207]
[1646382684398,0.21822891,41025.0,41009.0,0.26207]
[1646382684596,0.32751018,41030.0,41009.0,0.26207]
[1646382684597,0.32751018,41030.0,41010.0,1.0]
[1646382684796,1.34335922,41031.0,41012.0,0.7343]
[1646382684996,0.32751018,41030.0,41013.0,0.01217]
[1646382685198,1.34335922,41031.0,41013.0,0.01217]
[1646382685400,0.32751018,41030.0,41013.0,0.21573725]
[1646382685597,1.34335922,41031.0,41013.0,0.21573725]
[1646382685598,1.34335922,41031.0,41020.0,0.17009697]
[1646382685798,1.27362691,41031.0,41027.0,0.15463102]
[1646382685999,0.01,41039.0,41027.0,0.15463102]
[1646382686000,0.01,41039.0,41034.0,0.21601702]
[1646382686198,0.01,41039.0,41034.0,0.31601702]
[1646382686199,0.00756122,41039.0,41034.0,0.31601702]
[1646382686399,0.00756122,41039.0,41034.0,0.1]
[1646382686600,0.00756122,41039.0,41020.0,0.121877]
[1646382686601,0.00756122,41039.0,41024.0,0.01217]
[1646382686839,0.00756122,41039.0,41021.0,0.01217]
[1646382687144,0.00756122,41039.0,41017.0,0.01217]
[1646382687339,0.15,41036.0,41017.0,0.01217]
[1646382687540,0.00756122,41039.0,41000.0,0.01682438]
[1646382687541,0.15,41028.0,41000.0,0.01682438]
[1646382687739,0.33910978,41035.0,40994.0,0.9368]
[1646382687740,0.16278913,41013.0,41006.0,0.3897]
[1646382687944,0.36517942,41012.0,41006.0,0.3897]
[1646382688139,0.32751018,41011.0,41006.0,0.3897]
[1646382688340,0.15,41009.0,41006.0,0.3897]
[1646382688542,0.367309,41007.0,40994.0,0.4843]
[1646382688739,0.367309,41007.0,40992.0,0.0011]
[1646382688740,0.002,41002.0,40992.0,0.0011]
[1646382689144,0.03501,40998.0,40992.0,0.0011]
[1646382689348,0.03501,40998.0,40992.0,0.001]
[1646382689353,1.45,40994.0,40992.0,0.001]
[1646382689545,0.19880855,40984.0,40964.0,0.1792609]
[1646382689743,0.03347,40981.0,40972.0,0.26440488]
[1646382689944,0.03347,40981.0,40972.0,0.001]
[1646382690143,0.0122,40980.0,40972.0,0.001]
[1646382690549,0.0122,40980.0,40977.0,0.001]
[1646382690745,0.0122,40980.0,40972.0,0.001]
[1646382690746,0.15,40978.0,40972.0,0.001]
[1646382690945,0.15,40973.0,40963.0,0.001]
[1646382691144,0.15,40970.0,40963.0,0.001]
[1646382691548,0.09544,40971.0,40963.0,0.001]
[1646382691747,0.15,40973.0,40963.0,0.001]
[1646382691945,0.0122,40972.0,40963.0,0.001]
[1646382692546,0.1622,40972.0,40963.0,0.001]
[1646382692746,0.33971018,40976.0,40963.0,0.001]
[1646382692946,0.15,40974.0,40961.0,0.001]
[1646382693149,0.0122,40973.0,40961.0,0.001]
[1646382693348,0.15,40980.0,40961.0,0.001]
[1646382693545,0.35368068,40981.0,40961.0,0.001]
[1646382693546,0.0122,40979.0,40961.0,0.001]
[1646382693746,0.15,40975.0,40961.0,0.001]
[1646382694048,0.46280557,40979.0,40961.0,0.001]
[1646382694049,0.3,40978.0,40967.0,0.16433887]
[1646382694247,0.0122,40980.0,40961.0,0.001]
[1646382694447,0.01289328,40985.0,40961.0,0.001]
[1646382694645,0.45,40987.0,40961.0,0.001]
[1646382694646,0.01579005,40986.0,40961.0,0.001]
[1646382694846,0.3,40987.0,40961.0,0.001]
[1646382694847,0.01084648,40981.0,40961.0,0.001]
[1646382695047,0.15,40980.0,40961.0,0.001]
[1646382695449,0.3,40979.0,40961.0,0.001]
[1646382695952,0.15,40970.0,40961.0,0.001]
[1646382696150,0.06060463,40964.0,40961.0,0.001]
[1646382696347,0.0122,40968.0,40961.0,0.001]
[1646382696548,0.02505717,40969.0,40961.0,0.001]
[1646382696749,0.1622,40969.0,40961.0,0.001]
[1646382696949,0.3,40968.0,40961.0,0.001]
[1646382697149,0.15,40963.0,40961.0,0.001]
[1646382697350,0.367309,40961.0,40950.0,0.0011]
[1646382697553,0.0122,40960.0,40923.0,0.08577355]
[1646382697750,0.01446004,40955.0,40924.0,0.298]
[1646382697999,0.06479,40962.0,40925.0,1.0]
[1646382698001,0.4702,40961.0,40925.0,1.0]
[1646382698194,0.15,40952.0,40923.0,0.08577355]
[1646382698399,0.25,40934.0,40911.0,0.81953568]
[1646382698599,0.03361,40924.0,40911.0,0.81953568]
[1646382698796,0.03143,40925.0,40911.0,0.81953568]
[1646382698994,0.04276,40924.0,40911.0,0.81953568]
[1646382699194,0.45,40933.0,40911.0,0.81953568]
[1646382699397,0.47761,40935.0,40926.0,0.17159271]
[1646382699595,0.19880855,40929.0,40911.0,0.28213568]
[1646382699795,0.3,40928.0,40911.0,0.27713568]
[1646382699995,0.01340084,40926.0,40911.0,0.27713568]
[1646382700196,0.01575028,40934.0,40917.0,0.17390175]
[1646382700397,0.0411,40938.0,40912.0,0.15]
[1646382700597,0.3144004,40937.0,40931.0,0.17088968]
[1646382700799,0.31076867,40937.0,40914.0,0.15]
[1646382701000,0.01445401,40938.0,40920.0,0.15]
[1646382701197,0.41649378,40950.0,40915.0,0.15264933]
[1646382701198,0.20447549,40943.0,40931.0,0.19038699]
[1646382701401,0.01221,40953.0,40931.0,0.19038699]
[1646382701599,0.4654,40955.0,40943.0,0.125]
[1646382701845,0.2381,40971.0,40932.0,0.34099454]
[1646382701846,0.32766814,40969.0,40953.0,0.21265701]
[1646382702046,0.19193995,40960.0,40953.0,0.26265701]
[1646382702347,0.17369912,40964.0,40953.0,0.31265701]
[1646382702546,0.67080542,40962.0,40961.0,0.16774249]
[1646382702744,0.7631,40969.0,40961.0,0.16774249]
[1646382702745,0.4631,40969.0,40961.0,0.16774249]
[1646382702946,0.2381,40971.0,40961.0,0.16774249]
[1646382702947,0.2378096,40971.0,40961.0,0.16774249]
[1646382703144,0.3,40970.0,40961.0,0.16774249]
[1646382703345,0.01,40979.0,40957.0,0.28585203]
[1646382703548,0.01,40979.0,40969.0,0.20971262]
[1646382703746,0.01,40979.0,40964.0,0.0411]
[1646382704044,0.01,40979.0,40957.0,0.05]
[1646382704045,0.025,40978.0,40957.0,0.05]
[1646382704245,0.025,40978.0,40945.0,0.01056]
[1646382704246,0.025,40975.0,40954.0,0.16328227]
[1646382704445,0.025,40975.0,40945.0,0.01056]
[1646382704446,0.025,40967.0,40945.0,0.01056]
[1646382704644,0.025,40965.0,40936.0,0.0163533]
[1646382704847,0.49880855,40968.0,40932.0,0.2499]
[1646382704848,0.025,40951.0,40932.0,0.2499]
[1646382705045,0.025,40943.0,40936.0,0.00190504]
[1646382705246,0.25,40933.0,40918.0,0.001]
[1646382705498,0.025,40924.0,40918.0,0.001]
[1646382705696,0.03278,40930.0,40918.0,0.001]
[1646382705697,0.025,40922.0,40918.0,0.001]
[1646382705898,0.025,40921.0,40918.0,0.001]
[1646382706300,0.03507513,40921.0,40918.0,0.001]
[1646382706498,0.025,40921.0,40918.0,0.001]
[1646382706697,0.01221,40922.0,40918.0,0.001]
[1646382706897,0.025,40929.0,40918.0,0.18290361]
[1646382707296,0.025,40929.0,40918.0,0.001]
[1646382707896,0.01228991,40931.0,40928.0,0.2049721]
[1646382708098,0.11020364,40929.0,40918.0,0.001]
[1646382708296,0.01203442,40942.0,40918.0,0.001]
[1646382708297,0.01072803,40935.0,40918.0,0.001]
[1646382708497,0.78683239,40942.0,40920.0,0.25744239]
[1646382708498,0.31290355,40941.0,40920.0,0.25744239]
[1646382708702,0.19880855,40939.0,40920.0,0.25744239]
[1646382708897,0.04604647,40940.0,40920.0,0.25744239]
[1646382708898,0.3,40938.0,40920.0,0.25744239]
[1646382709100,0.04604647,40940.0,40922.0,0.19788623]
[1646382709342,0.04604647,40940.0,40922.0,0.17788623]
[1646382709740,0.01221,40939.0,40920.0,0.25744239]
[1646382710238,0.01221,40939.0,40920.0,1.35744239]
[1646382710440,0.04604647,40940.0,40921.0,1.0]
[1646382710740,0.04604647,40940.0,40932.0,0.25928506]
[1646382710941,0.11020364,40936.0,40932.0,0.25928506]
[1646382711137,0.04604647,40940.0,40932.0,0.25928506]
[1646382711138,0.04482587,40940.0,40932.0,0.25928506]
[1646382711340,0.11020364,40933.0,40932.0,0.25928506]
[1646382711541,3.64e-06,40933.0,40932.0,0.25928506]
[1646382711740,0.50431,40952.0,40932.0,0.1]
[1646382711741,0.4921,40952.0,40932.0,0.1]
[1646382711940,0.48178342,40952.0,40932.0,0.1]
[1646382712140,0.48178342,40952.0,40932.0,0.1411]
[1646382712740,0.48178342,40952.0,40949.0,0.25951475]
[1646382712989,0.53801888,40945.0,40943.0,0.16080084]
[1646382713388,0.53801888,40945.0,40944.0,0.3]
[1646382713591,0.01221,40965.0,40945.0,0.95]
[1646382713785,1.1303,40976.0,40945.0,1.0411]
[1646382713786,0.025,40964.0,40945.0,1.0411]
[1646382713992,0.0122,40974.0,40962.0,0.27122928]
[1646382713993,0.025,40970.0,40962.0,0.27122928]
[1646382714187,0.501,40974.0,40962.0,0.27122928]
[1646382714490,0.01002962,40977.0,40963.0,0.3]
[1646382714690,0.01,40979.0,40968.0,0.17099546]
[1646382714887,0.01,40979.0,40969.0,0.3]
[1646382715288,0.01,40979.0,40964.0,0.00217]
[1646382715489,0.025,40977.0,40964.0,0.3]
[1646382715690,0.01,40979.0,40965.0,0.3]
[1646382715889,0.01,40979.0,40967.0,0.18112604]
[1646382716089,0.01,40979.0,40962.0,0.25274574]
[1646382716090,0.01,40979.0,40974.0,0.20028102]
[1646382716389,0.01,40979.0,40975.0,0.3]
[1646382716592,0.01,40979.0,40971.0,0.0411]
[1646382716862,0.01,40979.0,40978.0,0.23990206]
[1646382717063,0.01,40979.0,40971.0,0.0411]
[1646382717663,0.36526374,40991.0,40985.0,0.15414946]
[1646382717863,0.4888,40998.0,40981.0,0.0411]
[1646382717864,0.01218,40998.0,40981.0,0.0411]
[1646382718062,0.4611,41007.0,40982.0,0.043269]
[1646382718063,0.31218,41006.0,40982.0,0.043269]
[1646382718264,0.33718,41006.0,40983.0,0.0411]
[1646382718462,0.33718,41006.0,40984.0,0.302169]
[1646382718463,0.03718,41006.0,40984.0,0.302169]
[1646382718662,0.01218,41006.0,40985.0,0.0411]
[1646382718863,0.025,41003.0,40989.0,0.19709999]
[1646382719064,0.4611,41007.0,40997.0,0.25215812]
[1646382719266,0.01,41009.0,40998.0,0.19216269]
[1646382719463,0.035,41009.0,40990.0,0.1691605]
[1646382719663,0.3,41008.0,40991.0,0.002168]
[1646382719866,0.3,41008.0,40993.0,0.061006]
[1646382720065,0.025,41008.0,40993.0,0.24807472]
[1646382720268,0.01,41009.0,40994.0,0.28873732]
[1646382720502,0.035,41009.0,40994.0,0.45634904]
[1646382720698,0.035,41009.0,41001.0,0.16742831]
[1646382720699,0.01,41009.0,41001.0,0.16742831]
[1646382721099,0.01,41009.0,41001.0,0.51742831]
[1646382721301,0.01,41009.0,41001.0,0.60852831]
[1646382721503,0.01,41009.0,41008.0,0.18579263]
[1646382721707,0.01,41009.0,41008.0,0.23579263]
[1646382722402,0.16643327,41018.0,41008.0,0.23579263]
[1646382722403,0.16643327,41018.0,41015.0,0.1770612]
[1646382722606,0.9543,41049.0,41008.0,0.05]
[1646382722607,0.025,41028.0,41027.0,0.26091676]
[1646382722802,0.025,41028.0,41013.0,0.0411]
[1646382722803,0.78275028,41025.0,41013.0,0.0411]
[1646382723004,0.18910499,41018.0,41013.0,0.0411]
[1646382723201,0.78275028,41025.0,41009.0,0.05]
[1646382723202,0.025,41022.0,41009.0,0.05]
[1646382723403,0.025,41018.0,41006.0,0.174132]
[1646382723602,0.78275028,41025.0,41014.0,0.18726043]
[1646382724002,0.78275028,41025.0,41014.0,0.23726043]
[1646382724003,0.025,41024.0,41014.0,0.23726043]
[1646382724237,0.78275028,41025.0,41014.0,0.23726043]
[1646382724553,0.01217,41033.0,41031.0,0.19132444]
[1646382724738,0.025,41042.0,41031.0,0.19132444]
[1646382724739,0.00756122,41039.0,41031.0,0.19132444]
[1646382724938,0.02256122,41045.0,41032.0,0.27749463]
[1646382725140,0.16860646,41044.0,41023.0,0.3411]
[1646382725340,0.16860646,41044.0,41023.0,0.0911]
[1646382725341,0.02256122,41037.0,41023.0,0.0911]
[1646382725744,0.02256122,41037.0,41023.0,0.0411]
[1646382725745,0.15,41037.0,41023.0,0.0411]
[1646382725945,0.21773735,41024.0,41006.0,0.246005]
[1646382726144,0.21773735,41024.0,41007.0,0.0411]
[1646382726145,0.19880855,41011.0,41007.0,0.0411]
[1646382726343,0.15,41020.0,41001.0,0.3]
[1646382726344,0.0189288,41008.0,41001.0,0.3]
[1646382726543,0.4968,41023.0,41010.0,0.000504]
[1646382726544,0.0189288,41014.0,41010.0,0.000504]
[1646382726943,0.0189288,41018.0,41010.0,0.000504]
[1646382727145,0.0189288,41018.0,41016.0,0.23968454]
[1646382727343,0.21548406,41017.0,41016.0,0.23968454]
[1646382727542,0.0189288,41020.0,41016.0,0.43413729]
[1646382727746,0.0189288,41028.0,41017.0,0.26967527]
[1646382727993,0.4968,41033.0,41017.0,0.26967527]
[1646382727994,0.4968,41033.0,41024.0,0.21788345]
[1646382728191,0.4968,41033.0,41017.0,0.1]
[1646382728192,0.01217,41037.0,41032.0,0.17306458]
[1646382728394,0.17256432,41034.0,41025.0,0.30147014]
[1646382728592,0.3,41033.0,41025.0,0.05]
[1646382728792,0.3,41033.0,41017.0,0.15]
[1646382728793,0.0189288,41036.0,41017.0,0.15]
[1646382729094,0.0189288,41036.0,41020.0,0.060973]
[1646382729292,0.4968,41043.0,41025.0,0.121911]
[1646382729493,0.0189288,41041.0,41026.0,0.3]
[1646382729694,0.4968,41043.0,41025.0,0.121911]
[1646382729695,0.0189288,41038.0,41025.0,0.121911]
[1646382729892,0.19021831,41038.0,41026.0,0.05]
[1646382730192,0.94560855,41043.0,41028.0,0.05]
[1646382730193,0.19880855,41042.0,41028.0,0.05]
[1646382730391,0.4968,41043.0,41029.0,0.3]
[1646382730608,0.07461538,41046.0,41034.0,0.15]
[1646382730798,0.07461538,41052.0,41036.0,0.121891]
[1646382731099,0.25,41047.0,41030.0,0.05]
[1646382731294,0.25,41047.0,41028.0,0.05]
[1646382731295,0.21873724,41045.0,41029.0,0.05]
[1646382731499,0.19880855,41052.0,41029.0,0.110952]
[1646382731500,0.07461538,41047.0,41029.0,0.110952]
[1646382731751,0.25799682,41052.0,41029.0,0.110952]
[1646382731752,0.3,41046.0,41031.0,0.19337494]
[1646382731951,0.05356105,41045.0,41031.0,0.19337494]
[1646382732153,0.0716435,41047.0,41038.0,0.21182546]
[1646382732552,0.3,41049.0,41038.0,0.21182546]
[1646382732753,0.3,41049.0,41032.0,0.060958]
[1646382732955,0.3,41049.0,41016.0,0.01223501]
[1646382732956,0.44880855,41037.0,41025.0,0.182847]
[1646382733155,0.19880855,41032.0,41017.0,0.060979]
[1646382733455,0.16135677,41038.0,41025.0,0.21911367]
[1646382733655,0.3,41045.0,41024.0,0.0411]
[1646382733854,0.4955,41055.0,41019.0,0.15]
[1646382733855,0.08444838,41046.0,41041.0,0.15611439]
[1646382734054,0.3,41052.0,41041.0,0.15611439]
[1646382734055,0.38444838,41052.0,41041.0,0.15611439]
[1646382734453,0.38444838,41052.0,41032.0,0.060955]
[1646382734454,0.44880855,41050.0,41032.0,0.060955]
[1646382734654,0.15647738,41042.0,41032.0,0.060955]
[1646382735256,0.3,41045.0,41041.0,0.27517599]
[1646382735493,0.06944838,41046.0,41042.0,0.1810568]
[1646382735692,0.3,41050.0,41039.0,0.06095]
[1646382735893,0.06950345,41046.0,41039.0,0.06095]
[1646382736094,0.3,41050.0,41034.0,0.121901]
[1646382736095,0.06950345,41050.0,41034.0,0.121901]
[1646382736294,0.06950345,41050.0,41037.0,0.060945]
[1646382736495,0.06950345,41053.0,41037.0,0.060945]
[1646382736695,0.06950345,41050.0,41049.0,0.12372953]
[1646382736896,0.06950345,41050.0,41046.0,0.16114586]
[1646382736897,0.24745906,41047.0,41046.0,0.16114586]
[1646382737099,0.31630923,41047.0,41046.0,0.16114586]
[1646382737403,0.31630923,41047.0,41046.0,0.21114586]
[1646382737598,0.19880855,41056.0,41046.0,0.05]
[1646382737800,0.06885017,41047.0,41044.0,0.060943]
[1646382737998,0.25,41057.0,41044.0,0.060943]
[1646382737999,0.3,41057.0,41044.0,0.060943]
[1646382738199,0.04819512,41047.0,41044.0,0.060943]
[1646382738500,0.18648206,41054.0,41045.0,0.060934]
[1646382738700,0.3,41053.0,41044.0,0.060943]
[1646382738902,0.74880855,41053.0,41044.0,0.060943]
[1646382739102,0.74880855,41053.0,41041.0,4.0]
[1646382739103,0.3,41053.0,41041.0,4.0]
[1646382739342,0.3,41053.0,41041.0,3.32893467]
[1646382739343,0.19880855,41045.0,41041.0,3.32893467]
[1646382739540,0.17138713,41047.0,41041.0,3.32893467]
[1646382739741,0.17138713,41047.0,41025.0,0.21614979]
[1646382739742,0.44880855,41034.0,41025.0,0.21614979]
[1646382739945,0.3,41033.0,41025.0,0.21614979]
[1646382740140,0.44880855,41034.0,41025.0,0.21614979]
[1646382740440,0.18031144,41028.0,41025.0,0.21614979]
[1646382740642,0.25,41034.0,41032.0,0.18778228]
[1646382740841,0.44880855,41038.0,41023.0,0.060972]
[1646382741040,0.015,41048.0,41009.0,0.121952]
[1646382741041,0.44880855,41037.0,41009.0,0.121952]
[1646382741240,0.0738166,41041.0,41020.0,0.07287863]
[1646382741441,0.3,41041.0,41021.0,0.146091]
[1646382741642,0.44880855,41050.0,41022.0,0.23914789]
[1646382741839,0.21609632,41039.0,41027.0,0.17685442]
[1646382742042,0.74880855,41038.0,41025.0,0.12192]
[1646382742243,0.21609632,41039.0,41020.0,0.3]
[1646382742244,0.44880855,41035.0,41020.0,0.3]
[1646382742439,0.59883919,41035.0,41019.0,0.243776]
[1646382742642,0.44880855,41035.0,41021.0,0.060977]
[1646382742839,0.44880855,41035.0,41025.0,0.22175585]
[1646382743091,0.44880855,41035.0,41027.0,0.21890087]
[1646382743492,0.3,41034.0,41020.0,0.060978]
[1646382743690,0.44880855,41035.0,41028.0,0.060974]
[1646382744495,0.44880855,41035.0,41024.0,0.121959]
[1646382744496,0.15,41029.0,40985.0,4.5298]
[1646382744694,0.15,41029.0,40985.0,4.33]
[1646382744695,0.15,41004.0,40985.0,4.33]
[1646382744896,0.367309,40992.0,40985.0,4.33]
[1646382745094,0.367309,40990.0,40985.0,4.33]
[1646382745294,0.06804416,40991.0,40985.0,4.33]
[1646382745295,0.367309,40988.0,40985.0,4.33]
[1646382745495,0.367309,40986.0,40985.0,4.33]
[1646382745697,0.367309,40986.0,40985.0,3.46]
[1646382745698,0.408409,40986.0,40985.0,3.46]
[1646382746094,0.408409,40986.0,40985.0,3.42]
[1646382746294,0.708409,40986.0,40985.0,1.34379543]
[1646382746500,1.71883536,40986.0,40985.0,1.19079543]
[1646382746746,1.101609,40984.0,40963.0,0.1968]
[1646382746946,0.517309,40973.0,40963.0,0.1968]
[1646382747145,0.367309,40971.0,40963.0,0.1968]
[1646382747347,0.26667158,40982.0,40963.0,0.1968]
[1646382747349,0.3,40981.0,40963.0,0.1968]
[1646382747550,0.3,40985.0,40967.0,0.21182051]
[1646382747748,0.3,40985.0,40963.0,0.1968]
[1646382747749,0.06106119,40984.0,40963.0,0.1968]
[1646382747949,0.15,40975.0,40963.0,0.1968]
[1646382748149,0.420609,40983.0,40955.0,0.001]
[1646382748150,0.2,40964.0,40955.0,0.001]
[1646382748346,0.3533,40963.0,40955.0,0.001]
[1646382748549,0.7343,40959.0,40937.0,0.0122]
[1646382748747,0.01463078,40950.0,40930.0,0.07467732]
[1646382748948,0.01463078,40950.0,40930.0,0.0011]
[1646382748949,0.367309,40945.0,40930.0,0.0011]
[1646382749146,0.0130928,40939.0,40931.0,0.006]
[1646382749345,0.0130928,40939.0,40924.0,0.2499]
[1646382749346,0.408409,40938.0,40924.0,0.2499]
[1646382749548,0.1998,40932.0,40924.0,0.2499]
[1646382749745,0.0411,40938.0,40927.0,0.236607]
[1646382749946,0.3,40937.0,40921.0,0.002]
[1646382750148,0.06014807,40938.0,40921.0,0.002]
[1646382750350,0.31221,40937.0,40921.0,0.002]
[1646382750599,0.31221,40937.0,40921.0,0.0001]
[1646382750793,0.31221,40937.0,40906.0,0.076]
[1646382750794,0.20114636,40933.0,40909.0,0.24883877]
[1646382750996,0.20114951,40929.0,40908.0,0.19430451]
[1646382751194,0.20114951,40929.0,40906.0,0.08821]
[1646382751195,0.1816,40920.0,40906.0,0.08821]
[1646382751398,0.43999636,40919.0,40906.0,0.076]
[1646382751597,0.84840536,40919.0,40906.0,0.076]
[1646382751800,0.13999636,40915.0,40906.0,0.076]
[1646382751997,0.66117441,40914.0,40911.0,8.399e-05]
[1646382752198,0.367309,40913.0,40911.0,8.399e-05]
[1646382752396,0.3,40912.0,40911.0,8.399e-05]
[1646382752597,0.50730536,40912.0,40911.0,8.399e-05]
[1646382752797,0.367309,40913.0,40911.0,8.399e-05]
[1646382752997,0.3,40914.0,40913.0,0.04945387]
[1646382753397,0.1223027,40934.0,40919.0,0.17126165]
[1646382753398,0.3,40928.0,40919.0,0.17126165]
[1646382753598,0.420619,40927.0,40911.0,8.399e-05]
[1646382753998,0.1815,40914.0,40911.0,8.399e-05]
[1646382754440,0.1815,40914.0,40913.0,0.24199683]
[1646382754837,0.367309,40926.0,40924.0,0.17785403]
[1646382755142,0.18347928,40936.0,40925.0,1.2]
[1646382755143,0.01221,40935.0,40925.0,1.2]
[1646382755337,0.0411,40936.0,40934.0,0.16382407]
[1646382755538,0.06,40935.0,40934.0,0.16382407]
[1646382755737,0.07333715,40947.0,40934.0,0.21382407]
[1646382755936,0.0411,40945.0,40941.0,0.16516289]
[1646382756135,0.22648787,40947.0,40941.0,0.10516289]
[1646382756136,0.0411,40944.0,40941.0,0.10516289]
[1646382756435,0.0411,40943.0,40939.0,0.24293581]
[1646382756634,0.0411,40943.0,40934.0,0.05]
[1646382756835,0.0361,40943.0,40925.0,1.2]
[1646382757037,0.31221,40956.0,40953.0,0.05317685]
[1646382757237,0.4746,40959.0,40933.0,0.15]
[1646382757238,0.10635369,40951.0,40946.0,0.06142069]
[1646382757438,0.10635369,40951.0,40947.0,0.21063903]
[1646382757639,0.10635369,40951.0,40947.0,0.58915243]
[1646382757837,0.10635369,40951.0,40947.0,0.48915243]
[1646382758290,0.10635369,40951.0,40948.0,0.16299093]
[1646382758490,3.69e-06,40951.0,40950.0,0.15]
[1646382758890,3.69e-06,40951.0,40950.0,0.55]
[1646382759288,3.69e-06,40951.0,40950.0,1.55]
[1646382759490,0.01,40979.0,40951.0,0.17900128]
[1646382759689,0.1998,40976.0,40971.0,0.15]
[1646382759888,0.1998,40976.0,40975.0,0.19232763]
[1646382760088,0.1998,40976.0,40963.0,0.05]
[1646382760089,0.47974644,40972.0,40963.0,0.05]
[1646382760490,0.67954644,40972.0,40967.0,0.15]
[1646382760792,0.67954644,40972.0,40964.0,0.4]
[1646382760988,0.67954644,40972.0,40968.0,0.06300217]
[1646382761192,0.67917733,40972.0,40966.0,0.3]
[1646382761388,0.67917733,40972.0,40965.0,0.46338879]
[1646382761589,0.47974644,40972.0,40965.0,0.46338879]
[1646382761841,0.47974644,40972.0,40955.0,0.3]
[1646382762042,0.56194644,40972.0,40955.0,0.15]
[1646382762240,0.56194644,40972.0,40946.0,0.0411]
[1646382762241,0.56194644,40972.0,40959.0,0.15]
[1646382762442,0.56194644,40972.0,40960.0,0.3]
[1646382762842,0.47974644,40972.0,40969.0,0.15514114]
[1646382763046,0.47974644,40972.0,40970.0,0.3]
[1646382763243,0.01,40979.0,40970.0,0.3]
[1646382763244,0.01,40979.0,40971.0,1.55]
[1646382763446,0.01,40979.0,40972.0,0.06386077]
[1646382763652,0.0122,40992.0,40975.0,0.15]
[1646382763653,0.1991,40983.0,40975.0,0.15]
[1646382763945,0.3122,40999.0,40991.0,0.45207915]
[1646382764143,0.01,41009.0,40991.0,0.45207915]
[1646382764144,0.79940247,41007.0,40991.0,0.45207915]
[1646382764344,0.24000001,40999.0,40991.0,0.27048708]
[1646382764742,0.24000001,40999.0,40992.0,0.05]
[1646382765141,0.24000001,40999.0,40984.0,0.061024]
[1646382765142,0.24000001,40999.0,40998.0,0.22838717]
[1646382765348,0.60730901,40999.0,40998.0,0.22838717]
[1646382765595,0.24000001,40999.0,40998.0,0.22838717]
[1646382765993,0.24000001,40999.0,40983.0,0.15]
[1646382766191,0.24000001,40999.0,40983.0,0.2]
[1646382766392,0.24000001,40999.0,40996.0,0.06986413]
[1646382766393,1e-08,40999.0,40996.0,0.06986413]
[1646382766592,1e-08,40999.0,40986.0,0.15]
[1646382766593,1e-08,40998.0,40990.0,0.06101]
[1646382766793,1e-08,40998.0,40995.0,0.2]
[1646382766991,1e-08,40998.0,40992.0,0.15]
[1646382767192,1e-08,40998.0,40992.0,0.05]
[1646382767692,1e-08,40998.0,40984.0,0.6246]
[1646382767891,1e-08,40998.0,40987.0,0.05]
[1646382768090,1e-08,40998.0,40985.0,0.061021]
[1646382768292,1e-08,40998.0,40986.0,0.2675]
[1646382768495,1e-08,40998.0,40989.0,0.15]
[1646382768695,1e-08,40998.0,40989.0,0.05]
[1646382768894,1e-08,40998.0,40986.0,0.25]
[1646382769096,1e-08,40998.0,40987.0,0.1]
[1646382769556,1e-08,40998.0,40988.0,0.122024]
[1646382769757,1e-08,40998.0,40988.0,0.222024]
[1646382769959,1e-08,40998.0,40993.0,0.061002]
[1646382770159,1e-08,40998.0,40994.0,0.3]
[1646382770356,1e-08,40998.0,40994.0,0.35]
[1646382770761,1e-08,40998.0,40996.0,0.15]
[1646382770958,1e-08,40998.0,40997.0,0.3]
[1646382771359,1e-08,40999.0,40997.0,0.35]
[1646382771557,1e-08,40999.0,40998.0,0.54040635]
[1646382771758,1e-08,40999.0,40998.0,0.69040635]
[1646382771957,0.01,41009.0,40998.0,0.69040635]
[1646382772259,0.01,41009.0,41003.0,0.060983]
[1646382772558,0.01,41009.0,41004.0,0.75766642]
[1646382772758,0.48908,41030.0,41022.0,0.16473298]
[1646382773009,0.48908,41030.0,41006.0,0.060981]
[1646382773010,0.01217,41033.0,41006.0,0.29088049]
[1646382773198,0.01217,41033.0,41019.0,0.05]
[1646382773399,0.01217,41038.0,41019.0,0.05]
[1646382773603,0.01217,41038.0,41025.0,0.21839096]
[1646382773799,0.01217,41038.0,41027.0,0.06258523]
[1646382774004,0.01,41039.0,41031.0,0.21915748]
[1646382774302,0.01,41039.0,41031.0,0.26915748]
[1646382774797,0.01,41039.0,41032.0,0.3]
[1646382774998,0.01,41039.0,41031.0,0.05]